bitfinex/quotes_SOLUSD_20250123
["timestamp","ask_amount","ask_price","bid_price","bid_amount"]
[1737662101810,4.0719,245.59,245.5,31.03243175]
[1737662101987,5.56,245.64,245.56,31.03243175]
[1737662102192,6.222,245.72,245.6,31.03243175]
[1737662102193,35.10223175,245.71,245.6,31.03243175]
[1737662102721,31.03243175,245.69,245.6,31.03243175]
[1737662102917,35.10223175,245.71,245.6,31.03243175]
[1737662103092,31.03243175,245.67,245.58,31.03243175]
[1737662103284,31.03243175,245.65,245.56,31.03243175]
[1737662103694,36.61243175,245.71,245.6,31.03243175]
[1737662103912,36.61243175,245.71,245.58,4.0719]
[1737662103913,40.68223175,245.71,245.62,31.03243175]
[1737662104105,40.68223175,245.71,245.6,31.03243175]
[1737662104309,36.61243175,245.71,245.6,31.03243175]
[1737662104512,35.10193175,245.73,245.62,31.03243175]
[1737662104686,31.03243175,245.73,245.64,31.03243175]
[1737662105013,36.61243175,245.75,245.64,31.03243175]
[1737662105215,5.58,245.75,245.66,31.03243175]
[1737662105409,31.03243175,245.81,245.7,31.03243175]
[1737662105715,31.03243175,245.83,245.66,2.0]
[1737662105911,31.03243175,245.91,245.8,31.03243175]
[1737662106506,28.78945437,245.93,245.84,31.03243175]
[1737662106700,31.03243175,245.9,245.8,31.03243175]
[1737662106917,31.03243175,245.85,245.76,31.03243175]
[1737662107119,31.03243175,245.79,245.69,31.03243175]
[1737662107319,31.03243175,245.77,245.67,35.10293175]
[1737662107494,23.776884,245.87,245.67,4.0705]
[1737662107699,31.03243175,245.88,245.7,31.03243175]
[1737662107700,31.03243175,245.8,245.7,31.03243175]
[1737662107913,31.03243175,245.8,245.7,35.10233175]
[1737662108394,31.03243175,245.8,245.63,10.1775]
[1737662108395,31.03243175,245.74,245.63,35.10353175]
[1737662108716,31.03243175,245.81,245.71,31.03243175]
[1737662109092,31.03243175,245.83,245.73,31.03243175]
[1737662109491,31.03243175,245.87,245.77,31.03243175]
[1737662109905,31.03243175,245.79,245.69,31.03243175]
[1737662110225,31.03243175,245.79,245.67,4.0705]
[1737662110226,31.03243175,245.77,245.67,35.10293175]
[1737662110396,31.03243175,245.75,245.67,4.0705]
[1737662110595,31.03243175,245.75,245.65,35.10313175]
[1737662110923,31.03243175,245.79,245.69,31.03243175]
[1737662111623,31.03243175,245.83,245.73,31.03243175]
[1737662111795,31.03243175,245.85,245.75,31.03243175]
[1737662112230,31.03243175,245.76,245.62,16.282172]
[1737662112399,31.03243175,245.69,245.59,35.16713175]
[1737662112731,31.03243175,245.71,245.59,35.16713175]
[1737662113099,31.03243175,245.71,245.61,31.03243175]
[1737662113304,31.03243175,245.77,245.67,31.03243175]
[1737662113728,31.03243175,245.77,245.65,31.03243175]
[1737662114019,31.03243175,245.75,245.65,35.10313175]
[1737662114224,31.03243175,245.77,245.67,31.03243175]
[1737662114428,31.03243175,245.73,245.63,31.03243175]
[1737662114602,31.03243175,245.71,245.61,31.03243175]
[1737662114804,31.03243175,245.73,245.63,31.03243175]
[1737662115204,31.03243175,245.75,245.63,31.03243175]
[1737662115507,23.776884,245.81,245.6,4.0716]
[1737662115508,31.03243175,245.77,245.65,31.03243175]
[1737662115814,31.03243175,245.79,245.67,31.03243175]
[1737662116026,35.10093175,245.79,245.67,35.10273175]
[1737662116421,31.03243175,245.77,245.67,35.10273175]
[1737662116726,31.03243175,245.72,245.62,4.0712]
[1737662117529,31.03243175,245.81,245.71,31.03243175]
[1737662117697,19.06434891,245.88,245.78,19.06434891]
[1737662117906,23.13104891,245.9,245.8,23.13254891]
[1737662118103,19.06434891,245.86,245.71,4.0698]
[1737662118306,20.0,245.87,245.71,4.0698]
[1737662118524,20.0,245.86,245.64,10.1771]
[1737662119324,19.06434891,245.81,245.71,19.06434891]
[1737662119514,19.06434891,245.79,245.69,19.06434891]
[1737662119720,31.01487963,245.72,245.62,31.01487963]
[1737662119902,31.01487963,245.7,245.59,0.063]
[1737662120230,5.66,245.75,245.64,31.01487963]
[1737662120231,36.67487963,245.75,245.64,31.01487963]
[1737662120522,5.66,245.75,245.66,31.01487963]
[1737662120933,31.01487963,245.81,245.7,31.01487963]
[1737662121144,31.01487963,245.86,245.74,31.01487963]
[1737662121321,31.01487963,245.88,245.76,31.01487963]
[1737662121502,31.01487963,245.83,245.72,31.01487963]
[1737662121710,31.01487963,245.81,245.7,31.01487963]
[1737662122002,31.01487963,245.88,245.69,4.0701]
[1737662122003,31.01487963,245.79,245.69,4.0701]
[1737662122198,31.01487963,245.81,245.7,31.01487963]
[1737662122821,31.01487963,245.81,245.7,343.01487963]
[1737662123007,4.0683,245.8,245.7,343.01487963]
[1737662123330,31.01487963,245.77,245.66,35.08537963]
[1737662123532,31.01487963,245.71,245.59,0.063]
[1737662123706,31.01487963,245.68,245.59,0.063]
[1737662124023,31.01487963,245.74,245.64,31.01487963]
[1737662124205,31.01487963,245.77,245.64,31.01487963]
[1737662124807,31.01487963,245.75,245.64,31.01487963]
[1737662125522,31.01487963,245.75,245.65,4.0708]
[1737662125824,35.08377963,245.77,245.65,4.0708]
[1737662126026,35.08377963,245.77,245.66,31.01487963]
[1737662126224,35.08377963,245.77,245.67,312.0]
[1737662126618,31.01487963,245.75,245.67,312.0]
[1737662126818,31.01487963,245.75,245.63,4.071]
[1737662127415,31.01487963,245.77,245.65,31.01487963]
[1737662127816,4.069,245.76,245.65,31.01487963]
[1737662128222,31.01487963,245.77,245.67,31.01487963]
[1737662128435,31.01487963,245.81,245.72,31.01487963]
[1737662128814,4.068,245.82,245.72,31.01487963]
[1737662129035,6.3877,245.86,245.77,31.01487963]
[1737662129335,31.01487963,245.88,245.77,31.01487963]
[1737662129515,31.01487963,245.79,245.67,31.01487963]
[1737662129829,31.01487963,245.79,245.69,347.08487963]
[1737662130045,31.01487963,245.81,245.71,31.01487963]
[1737662131017,4.0683,245.8,245.71,31.01487963]
[1737662131220,10.1686,245.86,245.73,31.01487963]
[1737662131221,35.08237963,245.85,245.73,31.01487963]
[1737662131411,4.0671,245.88,245.79,31.01487963]
[1737662131740,31.01487963,245.8,245.71,31.01487963]
[1737662131922,31.01487963,245.8,245.69,31.01487963]
[1737662132117,31.01487963,245.78,245.67,31.01487963]
[1737662132938,23.776884,245.87,245.69,31.01487963]
[1737662132939,31.01487963,245.8,245.69,31.01487963]
[1737662133120,4.0685,245.79,245.69,31.01487963]
[1737662133326,31.01487963,245.78,245.67,31.01487963]
[1737662133708,4.0685,245.79,245.69,31.01487963]
[1737662134116,4.0685,245.79,245.71,31.01487963]
[1737662134318,0.03,245.78,245.75,31.01487963]
[1737662135436,0.03,245.78,245.77,31.01487963]
[1737662137144,0.03,245.78,245.77,343.01487963]
[1737662137522,31.01487963,245.99,245.78,14.2402]
[1737662137749,31.01487963,245.99,245.88,31.01487963]
[1737662138044,4.065,246.0,245.9,31.01487963]
[1737662138218,4.065,246.0,245.92,31.01487963]
[1737662138422,4.0949,246.01,245.92,31.01487963]
[1737662138740,0.03,246.01,245.94,31.01487963]
[1737662139246,0.03,246.01,245.96,31.01487963]
[1737662139437,0.03,246.01,245.88,32.63287963]
[1737662139438,0.03,246.01,245.94,31.01487963]
[1737662139816,0.03,246.01,245.99,31.01487963]
[1737662140940,0.03,246.01,245.95,31.01487963]
[1737662141141,0.03,246.01,245.93,31.01487963]
[1737662141312,31.04487963,246.01,245.91,31.01487963]
[1737662141510,31.01487963,245.95,245.85,31.01487963]
[1737662141742,31.01487963,245.93,245.83,31.01487963]
[1737662141945,19.05479251,245.93,245.83,19.05479251]
[1737662142258,19.05479251,245.93,245.85,19.05479251]
[1737662142549,19.05479251,245.93,245.76,25.40049251]
[1737662142550,19.05479251,245.88,245.78,19.05479251]
[1737662142722,6.2257,245.93,245.8,19.05479251]
[1737662142723,19.05479251,245.9,245.8,19.05479251]
[1737662143042,23.12079251,245.94,245.84,19.05479251]
[1737662143548,4.0657,245.96,245.88,19.05479251]
[1737662143715,4.0657,245.96,245.9,19.05479251]
[1737662143915,9.7654,245.98,245.92,30.94678759]
[1737662144140,4.0654,245.98,245.9,30.94678759]
[1737662144851,4.0651,246.0,245.92,30.94678759]
[1737662145645,4.0651,246.0,245.82,2.0]
[1737662145646,0.03,246.01,245.95,30.94678759]
[1737662146518,0.03,246.01,245.93,30.94678759]
[1737662146921,30.94678759,245.98,245.89,30.94678759]
[1737662147419,0.03,245.96,245.89,30.94678759]
[1737662149047,0.03,245.96,245.91,30.94678759]
[1737662152739,0.03,245.96,245.93,30.94678759]
[1737662152945,0.03,245.96,245.9,4.0666]
[1737662152946,0.03,245.96,245.95,30.94678759]
[1737662153944,0.03,245.96,245.95,35.01258759]
[1737662154848,0.03,245.96,245.95,347.01258759]
[1737662155247,23.09503587,246.05,245.95,347.01258759]
[1737662155548,23.09503587,246.05,246.02,30.94678759]
[1737662157058,23.09503587,246.05,246.04,30.94678759]
[1737662157236,0.03,246.11,246.04,35.01108759]
[1737662157439,0.03,246.11,246.08,30.94678759]
[1737662157631,0.03,246.11,246.1,30.94678759]
[1737662157822,0.03,246.11,246.04,30.94678759]
[1737662158150,30.94678759,246.1,246.0,30.94678759]
[1737662158351,30.94678759,246.1,246.02,30.94678759]
[1737662158532,4.0932,246.11,246.04,30.94678759]
[1737662158727,4.0932,246.11,245.91,1.0]
[1737662158728,30.94678759,246.06,245.96,30.94678759]
[1737662159834,4.0638,246.07,245.98,30.94678759]
[1737662160134,4.0638,246.07,245.89,14.2339]
[1737662160135,4.0638,246.07,246.0,30.94678759]
[1737662160451,4.0637,246.08,246.04,30.94678759]
[1737662160752,4.0637,246.08,246.02,30.94678759]
[1737662160928,4.0637,246.08,246.0,30.94678759]
[1737662161128,35.01048759,246.08,245.98,30.94678759]
[1737662161529,45.16968759,246.08,245.98,30.94678759]
[1737662161735,4.0637,246.08,246.02,30.94678759]
[1737662161939,4.0637,246.08,246.04,30.94678759]
[1737662162135,0.03,246.1,246.06,30.94678759]
[1737662162342,0.03,246.1,246.0,30.94678759]
[1737662162343,0.03,246.1,246.08,30.94678759]
[1737662163740,0.03,246.1,246.08,35.01038759]
[1737662163957,0.03,246.1,246.09,19.00546356]
[1737662164543,0.03,246.1,246.09,38.01092712]
[1737662164739,0.03,246.16,246.1,23.776884]
[1737662164957,0.03,246.16,246.15,19.00546356]
[1737662165348,0.03,246.16,246.15,23.06796356]
[1737662166963,4.0599,246.31,246.15,23.06796356]
[1737662167260,19.00546356,246.29,246.2,19.00546356]
[1737662167444,19.00546356,246.27,246.18,19.00546356]
[1737662167639,30.88676537,246.25,246.15,30.88676537]
[1737662168267,30.88676537,246.23,246.13,30.88676537]
[1737662168442,30.88676537,246.25,246.15,30.88676537]
[1737662168643,4.061,246.24,246.15,30.88676537]
[1737662168839,50.88676537,246.29,246.19,30.88676537]
[1737662169038,0.03,246.3,246.19,30.88676537]
[1737662169565,0.03,246.3,246.2,30.88676537]
[1737662170065,0.03,246.3,246.19,30.88676537]
[1737662170246,4.0603,246.29,246.19,30.88676537]
[1737662170651,0.03,246.3,246.19,34.94856537]
[1737662171274,0.03,246.3,246.19,30.88676537]
[1737662171874,30.91676537,246.3,246.19,30.88676537]
[1737662172165,0.03,246.3,246.19,30.88676537]
[1737662174792,0.03,246.3,246.19,34.94856537]
[1737662177476,0.03,246.3,246.2,30.88676537]
[1737662178477,0.03,246.3,246.29,30.88676537]
[1737662178650,0.03,246.3,246.25,30.88676537]
[1737662178979,30.91676537,246.3,246.21,30.88676537]
[1737662179275,4.0602,246.29,246.21,30.88676537]
[1737662179482,4.0602,246.29,246.23,30.88676537]
[1737662179649,0.03,246.3,246.25,30.88676537]
[1737662180047,0.03,246.3,246.27,30.88676537]
[1737662180455,0.03,246.3,246.29,30.88676537]
[1737662181075,0.03,246.3,246.27,30.88676537]
[1737662181453,0.03,246.3,246.29,30.88676537]
[1737662181651,0.03,246.3,246.27,30.88676537]
[1737662181856,0.03,246.3,246.25,30.88676537]
[1737662182058,0.03,246.3,246.29,30.88676537]
[1737662185254,0.03,246.3,246.29,34.94696537]
[1737662187267,0.03,246.3,246.29,30.88676537]
[1737662187878,0.03,246.3,246.29,18.98196851]
[1737662189997,0.03,246.3,246.29,23.04216851]
[1737662190798,0.03,246.3,246.29,18.98196851]
[1737662192281,0.03,246.35,246.34,18.98196851]
[1737662192864,0.03,246.35,246.34,330.98196851]
[1737662193297,0.03,246.35,246.34,18.98196851]
[1737662195991,0.03,246.35,246.34,23.04136851]
[1737662196172,0.03,246.35,246.34,335.04136851]
[1737662198090,0.03,246.35,246.34,18.98196851]
[1737662199908,0.03,246.35,246.34,23.04136851]
[1737662200387,0.03,246.35,246.34,18.98196851]
[1737662202082,0.03,246.35,246.34,23.04136851]
[1737662202481,0.03,246.35,246.34,42.02333702]
[1737662204197,0.03,246.46,246.37,20.0]
[1737662204501,0.03,246.46,246.45,18.98196851]
[1737662204685,33.34643073,246.6,246.48,20.0]
[1737662205017,0.03,246.6,246.54,18.98196851]
[1737662205601,0.03,246.6,246.59,18.98196851]
[1737662205901,0.03,246.6,246.59,37.96393702]
[1737662206107,0.03,246.63,246.62,20.0]
[1737662206305,0.03,246.7,246.69,18.98196851]
[1737662208299,0.03,246.7,246.67,18.98196851]
[1737662208492,0.03,246.7,246.65,18.98196851]
[1737662209204,0.03,246.7,246.69,18.98196851]
[1737662210001,0.03,246.7,246.67,18.98196851]
[1737662210388,0.03,246.7,246.65,18.98196851]
[1737662210579,0.03,246.7,246.62,18.98196851]
[1737662210908,0.03,246.7,246.64,18.98196851]
[1737662211073,0.03,246.7,246.66,18.98196851]
[1737662212907,0.03,246.7,246.64,18.98196851]
[1737662213203,0.03,246.7,246.66,18.98196851]
[1737662213904,0.03,246.7,246.68,18.98196851]
[1737662214080,0.03,246.7,246.66,18.98196851]
[1737662214287,25.19866851,246.7,246.6,18.98196851]
[1737662214585,6.2167,246.7,246.62,18.98196851]
[1737662214780,0.03,246.7,246.66,18.98196851]
[1737662215102,0.03,246.7,246.68,18.98196851]
[1737662215307,0.03,246.7,246.64,18.98196851]
[1737662215500,0.03,246.7,246.6,18.98196851]
[1737662215687,18.98196851,246.69,246.58,18.98196851]
[1737662216081,4.0538,246.68,246.58,18.98196851]
[1737662216411,4.0538,246.68,246.6,18.98196851]
[1737662217000,18.98196851,246.65,246.56,18.98196851]
[1737662217186,18.98196851,246.61,246.52,18.98196851]
[1737662217590,6.5185,246.64,246.56,18.98196851]
[1737662217988,4.0546,246.63,246.56,18.98196851]
[1737662218316,6.5185,246.64,246.58,18.98196851]
[1737662218497,10.573,246.64,246.58,18.98196851]
[1737662219512,10.573,246.64,246.6,18.98196851]
[1737662219822,6.5185,246.64,246.62,18.98196851]
[1737662220308,6.5185,246.64,246.6,18.98196851]
[1737662220517,4.0541,246.67,246.62,18.98196851]
[1737662220721,18.98196851,246.63,246.58,0.063]
[1737662221287,20.0,246.62,246.58,0.063]
[1737662221488,18.98196851,246.61,246.58,0.063]
[1737662221686,18.98196851,246.59,246.58,0.063]
[1737662221907,18.98196851,246.64,246.58,0.063]
[1737662222119,4.0553,246.59,246.58,0.063]
[1737662222285,4.0553,246.59,246.46,18.98196851]
[1737662222490,18.98196851,246.5,246.4,18.98196851]
[1737662223210,18.98196851,246.41,246.3,0.063]
[1737662223515,18.98196851,246.41,246.32,18.98196851]
[1737662223688,18.98196851,246.43,246.32,18.98196851]
[1737662223888,18.98196851,246.43,246.3,0.063]
[1737662223889,18.98196851,246.43,246.34,18.98196851]
[1737662224696,4.0581,246.42,246.34,18.98196851]
[1737662224909,18.98196851,246.45,246.37,18.98196851]
[1737662225218,4.0579,246.44,246.37,18.98196851]
[1737662225723,10.1438,246.46,246.39,18.98196851]
[1737662226315,10.1438,246.46,246.41,18.98196851]
[1737662226518,6.0863,246.46,246.41,18.98196851]
[1737662226697,4.0572,246.48,246.41,18.98196851]
[1737662228426,4.0572,246.48,246.39,18.98196851]
[1737662228600,18.98196851,246.45,246.36,18.98196851]
[1737662229427,18.98196851,246.43,246.34,18.98196851]
[1737662230743,4.0577,246.44,246.36,18.98196851]
[1737662230937,4.0569,246.49,246.41,18.98196851]
[1737662231242,6.3323,246.52,246.45,18.98196851]
[1737662231614,10.3888,246.52,246.47,18.98196851]
[1737662231822,6.3323,246.52,246.47,18.98196851]
[1737662232015,10.3888,246.52,246.47,18.98196851]
[1737662232331,10.3888,246.52,246.45,18.98196851]
[1737662234535,4.0565,246.52,246.45,18.98196851]
[1737662235136,18.98196851,246.56,246.47,18.98196851]
[1737662235436,4.0559,246.55,246.47,18.98196851]
[1737662235929,18.98196851,246.48,246.38,18.98196851]
[1737662236132,18.98196851,246.48,246.34,0.063]
[1737662236133,18.98196851,246.46,246.36,18.98196851]
[1737662236314,18.98196851,246.5,246.4,18.98196851]
[1737662237033,18.98196851,246.44,246.34,19.04496851]
[1737662237209,4.0579,246.43,246.34,19.04496851]
[1737662237745,14.2027,246.43,246.34,19.04496851]
[1737662238943,18.98196851,246.42,246.34,0.063]
[1737662239649,14.2027,246.43,246.36,18.98196851]
[1737662239822,4.0579,246.43,246.38,18.98196851]
[1737662241437,4.0579,246.43,246.36,18.98196851]
[1737662241641,18.98196851,246.4,246.34,0.063]
[1737662241830,18.98196851,246.38,246.34,0.063]
[1737662242721,18.98196851,246.4,246.34,0.063]
[1737662243127,18.98196851,246.38,246.34,0.063]
[1737662243334,18.98196851,246.36,246.34,0.063]
[1737662243538,4.0592,246.35,246.34,0.063]
[1737662245728,4.0579,246.43,246.34,19.04496851]
[1737662246043,18.98196851,246.47,246.38,18.98196851]
[1737662246227,10.139,246.44,246.38,18.98196851]
[1737662246550,18.98196851,246.47,246.38,18.98196851]
[1737662246849,4.0575,246.46,246.38,18.98196851]
[1737662247046,18.98196851,246.4,246.34,0.063]
[1737662247243,18.98196851,246.38,246.34,0.063]
[1737662247844,4.0589,246.37,246.34,0.063]
[1737662249739,18.98196851,246.42,246.34,0.063]
[1737662250049,23.03906851,246.48,246.38,18.98196851]
[1737662250340,4.0571,246.48,246.4,18.98196851]
[1737662250546,23.03906851,246.48,246.38,18.98196851]
[1737662251449,4.0571,246.48,246.4,18.98196851]
[1737662251620,18.98196851,246.54,246.44,18.98196851]
[1737662251821,4.0559,246.55,246.46,18.98196851]
[1737662252232,18.98196851,246.48,246.37,18.98196851]
[1737662252434,2.0,246.53,246.34,5.6379]
[1737662252435,18.98196851,246.46,246.35,18.98196851]
[1737662252644,18.98196851,246.46,246.35,42.75885251]
[1737662253030,18.98196851,246.46,246.37,18.98196851]
[1737662253232,4.0576,246.45,246.37,18.98196851]
[1737662253549,4.0567,246.5,246.41,18.98196851]
[1737662253850,4.0566,246.52,246.43,18.98196851]
[1737662254348,4.0566,246.52,246.45,18.98196851]
[1737662255135,33.17966851,246.52,246.41,18.98196851]
[1737662255451,4.0566,246.52,246.45,18.98196851]
[1737662256340,4.0566,246.52,246.47,18.98196851]
[1737662256539,0.03,246.58,246.49,18.98196851]
[1737662256847,0.03,246.58,246.54,18.98196851]
[1737662257034,4.0855,246.58,246.52,18.98196851]
[1737662257238,4.0855,246.58,246.5,18.98196851]
[1737662257561,0.03,246.58,246.53,18.98196851]
[1737662257738,0.03,246.58,246.51,18.98196851]
[1737662257939,0.03,246.58,246.53,18.98196851]
[1737662258259,0.03,246.58,246.51,18.98196851]
[1737662258937,0.03,246.58,246.49,18.98196851]
[1737662260357,0.03,246.58,246.51,18.98196851]
[1737662260649,0.03,246.58,246.49,18.98196851]
[1737662260856,4.0854,246.58,246.49,18.98196851]
[1737662261056,4.0854,246.58,246.51,18.98196851]
[1737662261553,4.0854,246.58,246.49,18.98196851]
[1737662262648,0.03,246.58,246.55,18.98196851]
[1737662262934,0.03,246.58,246.57,18.98196851]
[1737662263626,0.03,246.58,246.57,42.75885251]
[1737662264244,0.03,246.58,246.57,65.79642102]
[1737662264430,0.03,246.58,246.57,46.81445251]
[1737662265347,0.03,246.58,246.57,358.81445251]
[1737662265852,0.03,246.58,246.55,18.98196851]
[1737662266227,0.03,246.58,246.57,18.98196851]
[1737662268450,0.03,246.58,246.55,18.98196851]
[1737662269459,0.03,246.58,246.56,23.776884]
[1737662269633,0.03,246.58,246.57,18.98196851]
[1737662270251,0.03,246.58,246.57,42.75885251]
[1737662271759,0.03,246.58,246.57,46.81445251]
[1737662273159,0.03,246.58,246.57,23.03756851]
[1737662274734,0.0001,246.58,246.57,42.01953702]
[1737662274936,0.03,246.7,246.58,23.776884]
[1737662275159,0.03,246.7,246.64,18.98196851]
[1737662275549,0.03,246.7,246.66,18.98196851]
[1737662275751,0.03,246.7,246.68,18.98196851]
[1737662275954,0.03,246.7,246.66,18.98196851]
[1737662276453,0.03,246.7,246.68,18.98196851]
[1737662276771,0.03,246.7,246.64,18.98196851]
[1737662277267,0.03,246.7,246.62,4.0547]
[1737662277268,0.03,246.7,246.62,18.98196851]
[1737662278666,0.03,246.7,246.62,23.03666851]
[1737662278852,0.03,246.7,246.64,18.98196851]
[1737662279350,0.03,246.7,246.66,18.98196851]
[1737662279558,0.03,246.7,246.67,23.776884]
[1737662280053,0.03,246.7,246.68,18.98196851]
[1737662280770,0.03,246.7,246.69,27.830484]
[1737662281443,0.03,246.7,246.68,18.98196851]
[1737662281970,0.03,246.7,246.66,18.98196851]
[1737662283069,0.03,246.7,246.6,29.11956851]
[1737662283070,0.03,246.7,246.68,18.98196851]
[1737662283262,0.03,246.7,246.66,18.98196851]
[1737662283469,0.03,246.7,246.64,18.98196851]
[1737662283868,0.03,246.7,246.66,18.98196851]
[1737662284777,0.03,246.7,246.68,18.98196851]
[1737662285356,0.03,246.7,246.66,18.98196851]
[1737662286954,0.03,246.7,246.64,18.98196851]
[1737662287579,0.03,246.7,246.66,18.98196851]
[1737662287957,0.03,246.7,246.68,18.98196851]
[1737662288793,0.03,246.7,246.66,18.98196851]
[1737662288973,0.03,246.7,246.64,18.98196851]
[1737662289772,0.03,246.7,246.63,11.8334246]
[1737662290385,0.03,246.7,246.61,15.8882246]
[1737662290679,0.03,246.7,246.61,15.8883246]
[1737662291177,0.03,246.7,246.61,11.8334246]
[1737662291383,11.8334246,246.68,246.59,11.8334246]
[1737662291688,18.94847871,246.63,246.57,0.063]
[1737662291861,18.94847871,246.65,246.57,0.063]
[1737662292256,4.0544,246.64,246.57,0.063]
[1737662292473,4.0544,246.64,246.57,19.01147871]
[1737662292682,10.2187,246.66,246.57,19.01147871]
[1737662293876,0.03,246.7,246.66,23.776884]
[1737662294053,0.03,246.7,246.69,42.72536271]
[1737662294677,0.03,246.72,246.71,43.776884]
[1737662294984,0.03,246.72,246.71,62.72536271]
[1737662295584,0.03,246.72,246.71,374.72536271]
[1737662295755,0.03,246.72,246.71,66.77866271]
[1737662297086,0.03,246.72,246.71,85.72714142]
[1737662297580,0.0001,246.72,246.71,85.72714142]
[1737662298793,0.0001,246.72,246.71,397.72714142]
[1737662299992,0.0001,246.72,246.71,66.77866271]
[1737662300285,0.0001,246.72,246.71,18.94847871]
[1737662301476,0.0001,246.72,246.71,42.72536271]
[1737662302371,0.0001,246.72,246.69,18.94847871]
[1737662303596,0.0001,246.72,246.62,322.1369]
[1737662303597,18.94847871,246.7,246.6,18.94847871]
[1737662303815,38.94847871,246.68,246.58,18.94847871]
[1737662303963,38.94847871,246.68,246.59,23.776884]
[1737662304292,43.00227871,246.68,246.58,18.94847871]
[1737662304483,43.00227871,246.68,246.57,0.063]
[1737662305278,43.00227871,246.68,246.58,18.94847871]
[1737662305600,18.94847871,246.66,246.57,23.839884]
[1737662305771,18.94847871,246.62,246.57,0.063]
[1737662305972,18.94847871,246.6,246.57,0.063]
[1737662306586,18.94847871,246.58,246.57,0.063]
[1737662307497,23.00387871,246.58,246.57,0.063]
[1737662307697,4.0554,246.58,246.57,0.063]
[1737662309996,18.94847871,246.6,246.57,0.063]
[1737662310199,18.94847871,246.69,246.59,18.94847871]
[1737662310372,23.00207871,246.69,246.59,18.94847871]
[1737662310574,4.0536,246.69,246.61,18.94847871]
[1737662311173,10.2663,246.71,246.63,18.94847871]
[1737662312411,0.0001,246.72,246.69,18.94847871]
[1737662312630,0.0001,246.72,246.71,18.94847871]
[1737662312784,0.0001,246.72,246.71,42.72536271]
[1737662313483,0.0001,246.72,246.69,18.94847871]
[1737662313682,4.0534,246.72,246.63,23.00297871]
[1737662314187,0.0001,246.72,246.68,18.94847871]
[1737662314396,0.0001,246.72,246.71,18.94847871]
[1737662315613,0.0001,246.72,246.71,19.01147871]
[1737662316724,0.0001,246.72,246.71,42.78836271]
[1737662318316,18.94857871,246.72,246.71,0.063]
[1737662318488,23.00167871,246.72,246.71,0.063]
[1737662318692,24.0532,246.72,246.71,0.063]
[1737662319209,0.0001,246.72,246.71,19.01147871]
[1737662319910,0.0001,246.72,246.71,0.063]
[1737662320103,0.0001,246.72,246.71,19.01147871]
[1737662321291,0.0001,246.72,246.71,0.063]
[1737662321697,18.94857871,246.72,246.71,0.063]
[1737662322809,23.00167871,246.72,246.71,0.063]
[1737662323190,4.0532,246.72,246.71,0.063]
[1737662324213,0.0001,246.72,246.71,0.063]
[1737662328227,0.0001,246.72,246.71,19.01147871]
[1737662329111,0.0001,246.72,246.71,46.84166271]
[1737662329313,0.0001,246.72,246.71,42.78836271]
[1737662329630,0.0001,246.72,246.71,0.063]
[1737662329925,0.0001,246.72,246.71,4.1163]
[1737662330417,0.0001,246.72,246.71,27.893184]
[1737662331018,0.0001,246.72,246.71,46.81161408]
[1737662333320,0.03,246.83,246.75,20.0]
[1737662333505,0.03,246.83,246.81,18.91843008]
[1737662333928,0.03,246.83,246.77,18.91843008]
[1737662334226,0.03,246.83,246.79,18.91843008]
[1737662334700,0.03,246.83,246.8,23.776884]
[1737662335612,0.03,246.83,246.81,18.91843008]
[1737662336527,0.03,246.83,246.77,18.91843008]
[1737662336824,0.03,246.83,246.75,18.91843008]
[1737662337001,0.03,246.83,246.76,23.776884]
[1737662337404,4.0813,246.83,246.76,23.776884]
[1737662338030,4.0813,246.83,246.77,18.91843008]
[1737662338206,0.03,246.83,246.79,18.91843008]
[1737662339527,0.03,246.83,246.77,18.91843008]
[1737662341029,18.91843008,246.81,246.73,18.91843008]
[1737662341729,18.94843008,246.83,246.73,18.91843008]
[1737662342130,18.91843008,246.81,246.73,18.91843008]
[1737662342833,4.0515,246.82,246.73,18.91843008]
[1737662343232,4.0515,246.82,246.75,18.91843008]
[1737662344432,4.0813,246.83,246.77,18.91843008]
[1737662345313,0.03,246.83,246.77,18.91843008]
[1737662345831,0.03,246.83,246.78,11.82005195]
[1737662347713,0.03,246.83,246.75,11.82005195]